[Event "*** Titled Tuesday 3|2 Blitz"]
[Site "Chess.com"]
[Date "2016.02.02"]
[Round "3"]
[White "IMRosen"]
[Black "mssjust"]
[Result "0-1"]
[WhiteElo "2249"]
[BlackElo "2494"]
[TimeControl "180+2"]
[EndTime "11:38:47 PST"]
[Termination "mssjust won by resignation"]

1. d4 {[%clk 0:02:48]} 1... Nf6 {[%clk 0:02:58.7]} 2. Nf3 {[%clk 0:02:46.4]}
2... g6 {[%clk 0:02:58.3]} 3. c4 {[%clk 0:02:43.6]} 3... Bg7 {[%clk 0:02:57.6]}
4. Nc3 {[%clk 0:02:45]} 4... d5 {[%clk 0:02:57.1]} 5. h4 {[%clk 0:02:45.3]} 5...
h6 {[%clk 0:02:48]} 6. h5 {[%clk 0:02:44.8]} 6... g5 {[%clk 0:02:47.4]} 7. Ne5
{[%clk 0:02:41]} 7... c6 {[%clk 0:02:45.6]} 8. e3 {[%clk 0:02:40.9]} 8... Nbd7
{[%clk 0:02:44]} 9. cxd5 {[%clk 0:02:39.5]} 9... Nxe5 {[%clk 0:02:39.7]} 10.
dxe5 {[%clk 0:02:38.9]} 10... Nxd5 {[%clk 0:02:40.7]} 11. Nxd5 {[%clk
0:02:30.8]} 11... Qxd5 {[%clk 0:02:41.4]} 12. Qxd5 {[%clk 0:02:30.8]} 12... cxd5
{[%clk 0:02:42.2]} 13. Bb5+ {[%clk 0:02:10.9]} 13... Bd7 {[%clk 0:02:40.3]} 14.
Bxd7+ {[%clk 0:02:11.6]} 14... Kxd7 {[%clk 0:02:40]} 15. f4 {[%clk 0:02:13.5]}
15... Rac8 {[%clk 0:02:38]} 16. Kd1 {[%clk 0:01:29.9]} 16... f6 {[%clk
0:02:31.5]} 17. exf6 {[%clk 0:00:28.6]} 17... Bxf6 {[%clk 0:02:32.1]} 18. f5
{[%clk 0:00:29.2]} 18... Rc4 {[%clk 0:02:29.2]} 19. Bd2 {[%clk 0:00:26.7]} 19...
Rg4 {[%clk 0:02:22.9]} 20. Rc1 {[%clk 0:00:14.9]} 20... b6 {[%clk 0:02:07.3]}
21. Rc2 {[%clk 0:00:13.6]} 21... Rxg2 {[%clk 0:02:05.4]} 22. Bc3 {[%clk
0:00:13.4]} 22... Rxc2 {[%clk 0:01:59.2]} 23. Bxf6 {[%clk 0:00:13.4]} 23... Rhc8
{[%clk 0:01:56.2]} 24. Bc3 {[%clk 0:00:11.7]} 24... Rf2 {[%clk 0:01:53]} 25. Ke1
{[%clk 0:00:03.3]} 25... Rxf5 {[%clk 0:01:51.8]} 26. Ke2 {[%clk 0:00:05]} 26...
g4 {[%clk 0:01:49]} 27. Bg7 {[%clk 0:00:05.9]} 27... Rc2+ {[%clk 0:01:45.5]} 28.
Kd3 {[%clk 0:00:07.5]} 28... Rc6 {[%clk 0:01:40.8]} 29. b4 {[%clk 0:00:07.5]}
29... e5 {[%clk 0:01:37.7]} 30. b5 {[%clk 0:00:06.5]} 30... e4+ {[%clk
0:01:35.7]} 31. Kd2 {[%clk 0:00:06.5]} 31... Rf2+ {[%clk 0:01:30.8]} 32. Kd1
{[%clk 0:00:06.9]} 32... Re6 {[%clk 0:01:23.8]} 33. a4 {[%clk 0:00:06.8]} 33...
g3 {[%clk 0:01:21.4]} 34. Rg1 {[%clk 0:00:07.1]} 34... g2 {[%clk 0:01:20.6]} 35.
Ke1 {[%clk 0:00:08.1]} 35... Ra2 {[%clk 0:01:17.8]} 36. Bd4 {[%clk 0:00:04.9]}
36... Re8 {[%clk 0:01:02.2]} 37. a5 {[%clk 0:00:04.7]} 37... Rc8 {[%clk
0:00:56.6]} 38. Kd1 {[%clk 0:00:04.8]} 38... Rf2 {[%clk 0:00:49.3]} 39. Ke1
{[%clk 0:00:04.7]} 39... Rf1+ {[%clk 0:00:45.2]} 40. Rxf1 {[%clk 0:00:05.5]}
40... gxf1=Q+ {[%clk 0:00:45.6]} 41. Kxf1 {[%clk 0:00:07.4]} 41... bxa5 {[%clk
0:00:39.6]} 42. Bxa7 {[%clk 0:00:09.2]} 42... a4 {[%clk 0:00:37.6]} 43. Bd4
{[%clk 0:00:07.8]} 43... a3 {[%clk 0:00:33.3]} 44. Ke2 {[%clk 0:00:09.3]} 44...
Rc4 {[%clk 0:00:30]} 45. Bg7 {[%clk 0:00:07.9]} 45... Rb4 {[%clk 0:00:26.2]} 46.
Bxh6 {[%clk 0:00:06.4]} 46... Rb2+ {[%clk 0:00:24.7]} 47. Kd1 {[%clk 0:00:05.8]}
47... a2 {[%clk 0:00:24.8]} 0-1

[Event "*** Titled Tuesday 3|2 Blitz"]
[Site "Chess.com"]
[Date "2016.02.02"]
[Round "3"]
[White "attack2mateU"]
[Black "pKiLz5Rn9b"]
[Result "1-0"]
[WhiteElo "2516"]
[BlackElo "2348"]
[TimeControl "180+2"]
[EndTime "11:39:01 PST"]
[Termination "attack2mateU won by resignation"]

1. e4 {[%clk 0:03:01.9]} 1... e6 {[%clk 0:03:01.2]} 2. d4 {[%clk 0:03:02.2]}
2... d5 {[%clk 0:03:02.1]} 3. e5 {[%clk 0:03:02.5]} 3... c5 {[%clk 0:03:03.1]}
4. c3 {[%clk 0:03:02.6]} 4... Nc6 {[%clk 0:03:04.3]} 5. Nf3 {[%clk 0:03:02.7]}
5... Qb6 {[%clk 0:03:05.7]} 6. a3 {[%clk 0:03:00.2]} 6... c4 {[%clk 0:03:07.1]}
7. Nbd2 {[%clk 0:02:58.6]} 7... Na5 {[%clk 0:03:08.6]} 8. g3 {[%clk 0:02:59]}
8... Bd7 {[%clk 0:03:10]} 9. Bh3 {[%clk 0:02:59.3]} 9... Ne7 {[%clk 0:03:11.2]}
10. O-O {[%clk 0:02:58.7]} 10... Nc8 {[%clk 0:03:12.3]} 11. Nh4 {[%clk
0:02:57.4]} 11... Qc7 {[%clk 0:03:12.1]} 12. f4 {[%clk 0:02:57.4]} 12... g6
{[%clk 0:03:13.6]} 13. Ng2 {[%clk 0:02:49.1]} 13... h5 {[%clk 0:03:09.5]} 14.
Ne3 {[%clk 0:02:49.7]} 14... Nb6 {[%clk 0:03:07.8]} 15. Nf3 {[%clk 0:02:43.8]}
15... Be7 {[%clk 0:03:03.4]} 16. Ng5 {[%clk 0:02:40.6]} 16... Ba4 {[%clk
0:02:54]} 17. Qf3 {[%clk 0:02:34]} 17... Nb3 {[%clk 0:02:49.8]} 18. Rb1 {[%clk
0:02:32.9]} 18... Nxc1 {[%clk 0:02:51]} 19. Rbxc1 {[%clk 0:02:32.8]} 19... Bd7
{[%clk 0:02:34.5]} 20. Rc2 {[%clk 0:01:32.6]} 20... Na4 {[%clk 0:02:01.3]} 21.
Re2 {[%clk 0:01:08.8]} 21... Bxg5 {[%clk 0:01:31.5]} 22. fxg5 {[%clk 0:01:09.6]}
22... Rf8 {[%clk 0:01:31]} 23. Nxd5 {[%clk 0:01:07.4]} 23... exd5 {[%clk
0:01:24.1]} 24. e6 {[%clk 0:01:05.5]} 24... O-O-O {[%clk 0:01:18.7]} 25. exd7+
{[%clk 0:01:03.9]} 25... Kb8 {[%clk 0:01:19.7]} 26. Qxd5 {[%clk 0:01:01.3]}
26... Nb6 {[%clk 0:01:20.8]} 27. Qe5 {[%clk 0:00:55.7]} 27... Qxe5 {[%clk
0:01:08.9]} 28. Rxe5 {[%clk 0:00:55.8]} 28... Kc7 {[%clk 0:01:09.5]} 29. Re7
{[%clk 0:00:55.4]} 29... Na4 {[%clk 0:01:06.1]} 30. Rf2 {[%clk 0:00:54.6]} 30...
Kd6 {[%clk 0:01:05.2]} 31. Rexf7 {[%clk 0:00:49.3]} 31... Rxf7 {[%clk
0:01:05.6]} 32. Rxf7 {[%clk 0:00:51.2]} 32... Nxb2 {[%clk 0:01:07.5]} 33. Rf6+
{[%clk 0:00:52.7]} 33... Kc7 {[%clk 0:01:07.9]} 34. Rxg6 {[%clk 0:00:53.9]}
34... Nd1 {[%clk 0:00:55.2]} 35. Rf6 {[%clk 0:00:38.3]} 35... Nxc3 {[%clk
0:00:50.3]} 36. g6 {[%clk 0:00:39.3]} 36... Nd5 {[%clk 0:00:30.6]} 37. Rf5
{[%clk 0:00:38.7]} 37... Ne7 {[%clk 0:00:10.3]} 38. Rc5+ {[%clk 0:00:38.6]}
38... Kd6 {[%clk 0:00:11.8]} 39. g7 {[%clk 0:00:36.6]} 39... Nc6 {[%clk
0:00:07.4]} 40. Rxc4 {[%clk 0:00:29.4]} 40... Rg8 {[%clk 0:00:07.5]} 41. Rc5
{[%clk 0:00:29.8]} 41... Ke7 {[%clk 0:00:03.9]} 42. d5 {[%clk 0:00:28.8]} 42...
Nd8 {[%clk 0:00:04.4]} 43. Rc8 {[%clk 0:00:28.1]} 43... b6 {[%clk 0:00:04.3]}
44. Kf2 {[%clk 0:00:28.6]} 44... a5 {[%clk 0:00:04.9]} 45. a4 {[%clk 0:00:28.3]}
45... Rxg7 {[%clk 0:00:02.3]} 46. d6+ {[%clk 0:00:29.2]} 46... Kxd6 {[%clk
0:00:03.4]} 47. Rxd8 {[%clk 0:00:30.6]} 47... Rf7+ {[%clk 0:00:05]} 48. Ke3
{[%clk 0:00:31.7]} 48... Re7+ {[%clk 0:00:06.9]} 49. Kd4 {[%clk 0:00:33.1]}
49... b5 {[%clk 0:00:07.9]} 50. Rb8 {[%clk 0:00:33.3]} 50... Re5 {[%clk
0:00:09.8]} 51. d8=Q+ {[%clk 0:00:34.1]} 1-0

[Event "*** Titled Tuesday 3|2 Blitz"]
[Site "Chess.com"]
[Date "2016.02.02"]
[Round "3"]
[White "Winehouse83"]
[Black "gmjoey1"]
[Result "0-1"]
[WhiteElo "2298"]
[BlackElo "2461"]
[TimeControl "180+2"]
[EndTime "11:39:25 PST"]
[Termination "gmjoey1 won by resignation"]

1. d4 {[%clk 0:03:01.9]} 1... Nf6 {[%clk 0:03:00.2]} 2. c4 {[%clk 0:03:02.5]}
2... e6 {[%clk 0:03:01.3]} 3. Nf3 {[%clk 0:03:03.2]} 3... Bb4+ {[%clk
0:03:00.8]} 4. Nbd2 {[%clk 0:03:03.5]} 4... b6 {[%clk 0:02:59.6]} 5. g3 {[%clk
0:03:01.9]} 5... Bb7 {[%clk 0:02:58.3]} 6. Bg2 {[%clk 0:03:02.8]} 6... O-O
{[%clk 0:02:56.6]} 7. O-O {[%clk 0:03:03.5]} 7... d6 {[%clk 0:02:56.3]} 8. Nb1
{[%clk 0:02:57.3]} 8... d5 {[%clk 0:02:53.5]} 9. a3 {[%clk 0:02:56.7]} 9... Be7
{[%clk 0:02:51.7]} 10. Ne5 {[%clk 0:02:57.2]} 10... Nbd7 {[%clk 0:02:44.9]} 11.
Nc3 {[%clk 0:02:57.5]} 11... c6 {[%clk 0:02:39.3]} 12. Nxd7 {[%clk 0:02:44.7]}
12... Qxd7 {[%clk 0:02:36.2]} 13. cxd5 {[%clk 0:02:27.9]} 13... cxd5 {[%clk
0:02:36]} 14. Bf4 {[%clk 0:02:20.2]} 14... Rac8 {[%clk 0:02:32.1]} 15. Qd3
{[%clk 0:02:18.3]} 15... Rc4 {[%clk 0:02:14.4]} 16. Rac1 {[%clk 0:02:07.8]}
16... Rfc8 {[%clk 0:02:12.8]} 17. Na2 {[%clk 0:01:40.5]} 17... b5 {[%clk
0:01:51.7]} 18. Bd2 {[%clk 0:01:37.9]} 18... Ne4 {[%clk 0:01:47.4]} 19. Bb4
{[%clk 0:01:28.3]} 19... Bxb4 {[%clk 0:01:39]} 20. axb4 {[%clk 0:01:26.7]} 20...
Qc6 {[%clk 0:01:38.4]} 21. Bf3 {[%clk 0:01:14.1]} 21... Qa6 {[%clk 0:01:32.3]}
22. Qa3 {[%clk 0:01:03]} 22... Qb6 {[%clk 0:01:26.3]} 23. Bxe4 {[%clk
0:00:47.1]} 23... dxe4 {[%clk 0:01:25.5]} 24. e3 {[%clk 0:00:47.6]} 24... h5
{[%clk 0:01:22.3]} 25. Rxc4 {[%clk 0:00:34.9]} 25... Rxc4 {[%clk 0:01:10.9]} 26.
Rc1 {[%clk 0:00:32.3]} 26... h4 {[%clk 0:01:09]} 27. Rxc4 {[%clk 0:00:31.2]}
27... bxc4 {[%clk 0:01:10.9]} 28. Qa5 {[%clk 0:00:28.8]} 28... Qc6 {[%clk
0:01:03]} 29. Nc3 {[%clk 0:00:13.7]} 29... f6 {[%clk 0:00:47.3]} 30. Qxa7 {[%clk
0:00:10.8]} 30... h3 {[%clk 0:00:46.3]} 31. b5 {[%clk 0:00:08.6]} 31... Qd7
{[%clk 0:00:40.5]} 32. Qb8+ {[%clk 0:00:05.2]} 32... Kh7 {[%clk 0:00:40.5]} 33.
Qf4 {[%clk 0:00:06.8]} 33... e5 {[%clk 0:00:39.6]} 34. Qh4+ {[%clk 0:00:08]}
34... Kg8 {[%clk 0:00:39.5]} 35. d5 {[%clk 0:00:06.6]} 35... Bxd5 {[%clk
0:00:38.1]} 36. g4 {[%clk 0:00:08.2]} 36... Be6 {[%clk 0:00:36.7]} 37. Qxh3
{[%clk 0:00:08.9]} 37... Qd2 {[%clk 0:00:36.7]} 38. Nxe4 {[%clk 0:00:06.8]}
38... Qd1+ {[%clk 0:00:37.8]} 39. Kg2 {[%clk 0:00:07.4]} 39... Bxg4 {[%clk
0:00:38.7]} 40. Qg3 {[%clk 0:00:08.8]} 40... f5 {[%clk 0:00:36.8]} 41. h3 {[%clk
0:00:09]} 41... Be2 {[%clk 0:00:30]} 42. Nc3 {[%clk 0:00:07]} 42... Qf1+ {[%clk
0:00:27]} 43. Kh2 {[%clk 0:00:07]} 43... e4 {[%clk 0:00:27.5]} 44. Nxe2 {[%clk
0:00:07.3]} 44... Qxe2 {[%clk 0:00:27.5]} 45. b6 {[%clk 0:00:08.8]} 45... Qxb2
{[%clk 0:00:28.4]} 46. Kg2 {[%clk 0:00:10.1]} 46... Qxb6 {[%clk 0:00:28.3]} 47.
Qc7 {[%clk 0:00:11.8]} 47... Qe6 {[%clk 0:00:28.9]} 48. Qd8+ {[%clk 0:00:11.7]}
48... Kh7 {[%clk 0:00:30.3]} 49. Qh4+ {[%clk 0:00:13.3]} 49... Qh6 {[%clk
0:00:31.1]} 50. Qe7 {[%clk 0:00:12]} 50... Qg6+ {[%clk 0:00:31.6]} 51. Kh2
{[%clk 0:00:13.5]} 51... Qh5 {[%clk 0:00:31.5]} 52. Qe6 {[%clk 0:00:13.7]} 52...
Qf3 {[%clk 0:00:32.3]} 53. Kg1 {[%clk 0:00:13.3]} 53... c3 {[%clk 0:00:33.4]}
54. Qc4 {[%clk 0:00:14.7]} 54... Qd1+ {[%clk 0:00:34.3]} 55. Kg2 {[%clk
0:00:16.1]} 55... c2 {[%clk 0:00:36.2]} 56. Qc5 {[%clk 0:00:17.3]} 56... Qf3+
{[%clk 0:00:36.6]} 0-1

[Event "*** Titled Tuesday 3|2 Blitz"]
[Site "Chess.com"]
[Date "2016.02.02"]
[Round "3"]
[White "ethylalcohol"]
[Black "pedromartinez91"]
[Result "0-1"]
[WhiteElo "1729"]
[BlackElo "1962"]
[TimeControl "180+2"]
[EndTime "11:40:07 PST"]
[Termination "pedromartinez91 won by checkmate"]

1. e4 {[%clk 0:02:57.4]} 1... c5 {[%clk 0:02:58.6]} 2. Nc3 {[%clk 0:02:58]} 2...
Nc6 {[%clk 0:02:57.5]} 3. g3 {[%clk 0:02:31.8]} 3... g6 {[%clk 0:02:51]} 4. Bg2
{[%clk 0:02:30.7]} 4... Bg7 {[%clk 0:02:51.4]} 5. d3 {[%clk 0:02:30.8]} 5... d6
{[%clk 0:02:49.6]} 6. Nge2 {[%clk 0:02:22.5]} 6... e6 {[%clk 0:02:49.6]} 7. Be3
{[%clk 0:02:20.3]} 7... Nge7 {[%clk 0:02:50.4]} 8. Qd2 {[%clk 0:02:05.5]} 8...
Nd4 {[%clk 0:02:49.3]} 9. O-O {[%clk 0:01:52.5]} 9... Nec6 {[%clk 0:02:47]} 10.
Nc1 {[%clk 0:01:48.1]} 10... O-O {[%clk 0:02:45.7]} 11. Nd1 {[%clk 0:01:46.1]}
11... Ne5 {[%clk 0:02:45.8]} 12. f4 {[%clk 0:01:39.5]} 12... Ng4 {[%clk
0:02:46]} 13. c3 {[%clk 0:01:35.1]} 13... Nc6 {[%clk 0:02:40]} 14. Ne2 {[%clk
0:01:30.2]} 14... Rb8 {[%clk 0:02:39.4]} 15. h3 {[%clk 0:01:10.4]} 15... Nxe3
{[%clk 0:02:39.6]} 16. Nxe3 {[%clk 0:01:12.3]} 16... b6 {[%clk 0:02:39.6]} 17.
f5 {[%clk 0:01:06.5]} 17... Ne5 {[%clk 0:02:38.2]} 18. Rf2 {[%clk 0:00:52.5]}
18... f6 {[%clk 0:02:37.6]} 19. fxe6 {[%clk 0:00:48.9]} 19... Bxe6 {[%clk
0:02:37.8]} 20. Nf4 {[%clk 0:00:50.5]} 20... Bd7 {[%clk 0:02:35.4]} 21. Nfd5
{[%clk 0:00:50.2]} 21... Kh8 {[%clk 0:02:24.7]} 22. Raf1 {[%clk 0:00:50.8]}
22... Be6 {[%clk 0:02:16.8]} 23. d4 {[%clk 0:00:46.9]} 23... Nd7 {[%clk
0:02:12.1]} 24. Nc4 {[%clk 0:00:45.4]} 24... Bxd5 {[%clk 0:02:06.6]} 25. exd5
{[%clk 0:00:45.5]} 25... Qc7 {[%clk 0:02:06.9]} 26. Qf4 {[%clk 0:00:42]} 26...
cxd4 {[%clk 0:02:04.9]} 27. Nxd6 {[%clk 0:00:35.2]} 27... Ne5 {[%clk 0:02:00.1]}
28. cxd4 {[%clk 0:00:31.6]} 28... Qxd6 {[%clk 0:01:58.2]} 29. dxe5 {[%clk
0:00:31.4]} 29... fxe5 {[%clk 0:01:58.9]} 30. Qe4 {[%clk 0:00:30.7]} 30... Rxf2
{[%clk 0:01:58.3]} 31. Rxf2 {[%clk 0:00:30.9]} 31... Rf8 {[%clk 0:01:57.4]} 32.
Rxf8+ {[%clk 0:00:30.2]} 32... Bxf8 {[%clk 0:01:58.5]} 33. Qg4 {[%clk
0:00:28.6]} 33... h5 {[%clk 0:01:52.5]} 34. Qc8 {[%clk 0:00:28.7]} 34... Kg7
{[%clk 0:01:49.1]} 35. Qc6 {[%clk 0:00:28.7]} 35... Qc5+ {[%clk 0:01:46.6]} 36.
Qxc5 {[%clk 0:00:27.6]} 36... Bxc5+ {[%clk 0:01:47.4]} 37. Kf1 {[%clk 0:00:29]}
37... Kf6 {[%clk 0:01:47.9]} 38. Ke2 {[%clk 0:00:28.7]} 38... g5 {[%clk
0:01:48.4]} 39. Kd3 {[%clk 0:00:28.3]} 39... g4 {[%clk 0:01:43.9]} 40. hxg4
{[%clk 0:00:27.3]} 40... hxg4 {[%clk 0:01:44.5]} 41. Bf1 {[%clk 0:00:27.8]}
41... Bf2 {[%clk 0:01:44.4]} 42. Be2 {[%clk 0:00:27.6]} 42... Bxg3 {[%clk
0:01:45.2]} 43. Bxg4 {[%clk 0:00:27.9]} 43... Ke7 {[%clk 0:01:46.7]} 44. Kc4
{[%clk 0:00:27.3]} 44... Kd6 {[%clk 0:01:47.2]} 45. Bf3 {[%clk 0:00:27.8]} 45...
Bf2 {[%clk 0:01:47.1]} 46. Kb5 {[%clk 0:00:28]} 46... Bd4 {[%clk 0:01:46.7]} 47.
b3 {[%clk 0:00:25.8]} 47... Bc3 {[%clk 0:01:47.4]} 48. a4 {[%clk 0:00:26]} 48...
Bd4 {[%clk 0:01:47.1]} 49. Ka6 {[%clk 0:00:25.6]} 49... Kc7 {[%clk 0:01:48.2]}
50. Be2 {[%clk 0:00:22.8]} 50... e4 {[%clk 0:01:46.6]} 51. Kb5 {[%clk
0:00:22.1]} 51... a5 {[%clk 0:01:44.5]} 52. Kc4 {[%clk 0:00:21.6]} 52... Bc5
{[%clk 0:01:45.6]} 53. Kb5 {[%clk 0:00:20.9]} 53... Kd6 {[%clk 0:01:46.5]} 54.
Bc4 {[%clk 0:00:20.2]} 54... Ke5 {[%clk 0:01:47.3]} 55. Kc6 {[%clk 0:00:20.3]}
55... e3 {[%clk 0:01:43.6]} 56. Be2 {[%clk 0:00:18.8]} 56... Kd4 {[%clk
0:01:31.6]} 57. d6 {[%clk 0:00:17.1]} 57... Kc3 {[%clk 0:01:30.4]} 58. d7 {[%clk
0:00:14.3]} 58... Be7 {[%clk 0:01:30.8]} 59. Kxb6 {[%clk 0:00:14.9]} 59... Bd8+
{[%clk 0:01:30.6]} 60. Kc6 {[%clk 0:00:13.5]} 60... Kxb3 {[%clk 0:01:31.4]} 61.
Kb7 {[%clk 0:00:13.5]} 61... Kxa4 {[%clk 0:01:29.6]} 62. Kc8 {[%clk 0:00:14.2]}
62... Bg5 {[%clk 0:01:30]} 63. d8=Q {[%clk 0:00:11.3]} 63... Bxd8 {[%clk
0:01:30.6]} 64. Kxd8 {[%clk 0:00:12.6]} 64... Kb4 {[%clk 0:01:31.4]} 65. Kc7
{[%clk 0:00:12.6]} 65... a4 {[%clk 0:01:32.6]} 66. Kd6 {[%clk 0:00:12]} 66... a3
{[%clk 0:01:33.9]} 67. Ke5 {[%clk 0:00:10.1]} 67... a2 {[%clk 0:01:35]} 68. Kf4
{[%clk 0:00:11.3]} 68... a1=Q {[%clk 0:01:35.4]} 69. Kxe3 {[%clk 0:00:12.4]}
69... Qe5+ {[%clk 0:01:36.7]} 70. Kf2 {[%clk 0:00:11.3]} 70... Kc3 {[%clk
0:01:37.1]} 71. Bf3 {[%clk 0:00:11.9]} 71... Kd2 {[%clk 0:01:37.5]} 72. Kg2
{[%clk 0:00:12.6]} 72... Qf4 {[%clk 0:01:38.2]} 73. Kf2 {[%clk 0:00:13.2]} 73...
Qg5 {[%clk 0:01:36.5]} 74. Be2 {[%clk 0:00:12.7]} 74... Qe3+ {[%clk 0:01:37]}
75. Kg2 {[%clk 0:00:12.8]} 75... Qxe2+ {[%clk 0:01:38]} 76. Kg3 {[%clk 0:00:14]}
76... Qf1 {[%clk 0:01:38.4]} 77. Kh2 {[%clk 0:00:14.5]} 77... Qf7 {[%clk
0:01:37.9]} 78. Kg3 {[%clk 0:00:15.5]} 78... Qf5 {[%clk 0:01:38.9]} 79. Kh4
{[%clk 0:00:16.5]} 79... Qg6 {[%clk 0:01:39.8]} 80. Kh3 {[%clk 0:00:17.5]} 80...
Ke2 {[%clk 0:01:41.1]} 81. Kh4 {[%clk 0:00:18.4]} 81... Kf3 {[%clk 0:01:41.9]}
82. Kh3 {[%clk 0:00:19.3]} 82... Qh5# {[%clk 0:01:43.2]} 0-1

[Event "*** Titled Tuesday 3|2 Blitz"]
[Site "Chess.com"]
[Date "2016.02.02"]
[Round "3"]
[White "KNVB"]
[Black "AnthonyWirig"]
[Result "1-0"]
[WhiteElo "2398"]
[BlackElo "2520"]
[TimeControl "180+2"]
[EndTime "11:40:28 PST"]
[Termination "KNVB won by resignation"]

1. d4 {[%clk 0:02:54.1]} 1... Nf6 {[%clk 0:02:16.5]} 2. c4 {[%clk 0:02:53.5]}
2... e6 {[%clk 0:02:17.7]} 3. Nc3 {[%clk 0:02:53.8]} 3... Bb4 {[%clk 0:02:18.1]}
4. Qc2 {[%clk 0:02:52.4]} 4... O-O {[%clk 0:02:15]} 5. Nf3 {[%clk 0:02:50]} 5...
d6 {[%clk 0:02:07.4]} 6. Bd2 {[%clk 0:02:38]} 6... Nc6 {[%clk 0:02:06.5]} 7. g3
{[%clk 0:02:29.6]} 7... Qe7 {[%clk 0:02:05.3]} 8. Bg2 {[%clk 0:02:24.8]} 8... h6
{[%clk 0:02:04.9]} 9. O-O {[%clk 0:02:23.5]} 9... Re8 {[%clk 0:02:05.1]} 10. a3
{[%clk 0:02:08.6]} 10... Bxc3 {[%clk 0:02:06.1]} 11. Bxc3 {[%clk 0:02:10.5]}
11... e5 {[%clk 0:02:07.4]} 12. dxe5 {[%clk 0:02:07]} 12... dxe5 {[%clk
0:02:08.3]} 13. b4 {[%clk 0:02:05]} 13... e4 {[%clk 0:02:09.4]} 14. Nd4 {[%clk
0:02:04]} 14... Ne5 {[%clk 0:01:59.5]} 15. c5 {[%clk 0:01:17.4]} 15... Ng6
{[%clk 0:01:53.6]} 16. Bb2 {[%clk 0:01:05.9]} 16... Bg4 {[%clk 0:01:41.4]} 17.
Nb5 {[%clk 0:01:01]} 17... a6 {[%clk 0:01:29.7]} 18. Bxf6 {[%clk 0:00:59]} 18...
gxf6 {[%clk 0:01:31.6]} 19. Nc3 {[%clk 0:00:54.7]} 19... f5 {[%clk 0:01:23.3]}
20. Rad1 {[%clk 0:00:42.6]} 20... c6 {[%clk 0:01:20]} 21. Rd6 {[%clk 0:00:38.1]}
21... Ne5 {[%clk 0:01:16.5]} 22. Qc1 {[%clk 0:00:21.7]} 22... Qg5 {[%clk
0:01:10.7]} 23. Rxh6 {[%clk 0:00:18.2]} 23... Qg7 {[%clk 0:00:58]} 24. h3 {[%clk
0:00:13.7]} 24... e3 {[%clk 0:00:56.5]} 25. Rd6 {[%clk 0:00:07.2]} 25... Bh5
{[%clk 0:00:49.1]} 26. Kh2 {[%clk 0:00:06.9]} 26... Nc4 {[%clk 0:00:36.7]} 27.
Rd7 {[%clk 0:00:07.9]} 27... f4 {[%clk 0:00:33.1]} 28. gxf4 {[%clk 0:00:07.4]}
28... Qf6 {[%clk 0:00:31.7]} 29. fxe3 {[%clk 0:00:06.1]} 29... Nxe3 {[%clk
0:00:32.9]} 30. Rf2 {[%clk 0:00:05.4]} 30... Bg6 {[%clk 0:00:28]} 31. Rd6 {[%clk
0:00:06]} 31... Qh4 {[%clk 0:00:28]} 32. Rf3 {[%clk 0:00:06.3]} 32... Nf5 {[%clk
0:00:27.8]} 33. Rd1 {[%clk 0:00:04.4]} 33... Rad8 {[%clk 0:00:27.2]} 34. Rxd8
{[%clk 0:00:04.9]} 34... Rxd8 {[%clk 0:00:29]} 35. Ne4 {[%clk 0:00:06.4]} 35...
Bh5 {[%clk 0:00:28.3]} 36. Rd3 {[%clk 0:00:06]} 36... Rxd3 {[%clk 0:00:24.4]}
37. exd3 {[%clk 0:00:07.9]} 37... Nd4 {[%clk 0:00:24.3]} 38. Qf1 {[%clk
0:00:08.5]} 38... f5 {[%clk 0:00:24.1]} 39. Ng3 {[%clk 0:00:09]} 39... Bf7
{[%clk 0:00:20.3]} 40. Qf2 {[%clk 0:00:10]} 40... Qf6 {[%clk 0:00:21.5]} 41. Qe3
{[%clk 0:00:10.2]} 41... Kf8 {[%clk 0:00:22.4]} 42. Ne2 {[%clk 0:00:08.3]} 42...
Ne6 {[%clk 0:00:22.5]} 43. d4 {[%clk 0:00:09]} 43... Nc7 {[%clk 0:00:22.4]} 44.
Qe5 {[%clk 0:00:10]} 44... Ne8 {[%clk 0:00:18.2]} 45. Qxf6 {[%clk 0:00:09.3]}
45... Nxf6 {[%clk 0:00:20.1]} 46. Bf3 {[%clk 0:00:05.8]} 46... Ke7 {[%clk
0:00:21.1]} 47. Nc3 {[%clk 0:00:06.7]} 47... Bc4 {[%clk 0:00:22]} 48. Kg3 {[%clk
0:00:07.7]} 48... Ke6 {[%clk 0:00:23]} 49. Kf2 {[%clk 0:00:08.7]} 49... Bd3
{[%clk 0:00:24]} 50. Ke3 {[%clk 0:00:09.9]} 50... Bc4 {[%clk 0:00:25.4]} 51. a4
{[%clk 0:00:08.7]} 51... Ne8 {[%clk 0:00:24.8]} 52. Be2 {[%clk 0:00:07.8]} 52...
Bb3 {[%clk 0:00:25.4]} 53. b5 {[%clk 0:00:08.7]} 53... axb5 {[%clk 0:00:27.3]}
54. axb5 {[%clk 0:00:10.6]} 54... Nc7 {[%clk 0:00:28.8]} 55. b6 {[%clk
0:00:09.4]} 55... Ne8 {[%clk 0:00:26.2]} 56. Ba6 {[%clk 0:00:10.6]} 56... Kd7
{[%clk 0:00:23.5]} 57. Bxb7 {[%clk 0:00:11.8]} 57... Nf6 {[%clk 0:00:25.3]} 58.
Ba6 {[%clk 0:00:11.6]} 58... Nh5 {[%clk 0:00:25.6]} 59. Be2 {[%clk 0:00:11.9]}
59... Nf6 {[%clk 0:00:26.5]} 60. Bd3 {[%clk 0:00:13.3]} 60... Be6 {[%clk
0:00:26.9]} 61. h4 {[%clk 0:00:11.2]} 61... Ng4+ {[%clk 0:00:26.7]} 62. Kf3
{[%clk 0:00:12.1]} 62... Nf6 {[%clk 0:00:28.6]} 63. Nd1 {[%clk 0:00:12.2]} 63...
Kc8 {[%clk 0:00:30]} 64. Ne3 {[%clk 0:00:13.6]} 64... Kb7 {[%clk 0:00:30.2]} 65.
Nxf5 {[%clk 0:00:14.3]} 65... Bd5+ {[%clk 0:00:31.3]} 66. Kg3 {[%clk 0:00:14.5]}
66... Nh5+ {[%clk 0:00:33]} 67. Kg4 {[%clk 0:00:15.4]} 67... Nf6+ {[%clk
0:00:34.9]} 68. Kg5 {[%clk 0:00:17.1]} 68... Nh7+ {[%clk 0:00:36.3]} 69. Kg6
{[%clk 0:00:18.7]} 69... Nf8+ {[%clk 0:00:37.8]} 70. Kf6 {[%clk 0:00:19.3]}
70... Ne6 {[%clk 0:00:39.7]} 71. Ke5 {[%clk 0:00:19]} 71... Nd8 {[%clk
0:00:40.5]} 72. Ne7 {[%clk 0:00:19.4]} 72... Nf7+ {[%clk 0:00:40.9]} 73. Kf6
{[%clk 0:00:20.5]} 73... Bh1 {[%clk 0:00:42.8]} 74. h5 {[%clk 0:00:21.1]} 74...
Nh6 {[%clk 0:00:43.4]} 75. Be2 {[%clk 0:00:19.1]} 1-0